[Event "10th Cherry Blossom Classic 2023"]
[Site "Dulles"]
[Date "2023.05.28"]
[Round "6.21"]
[White "Michelle Catherina, P."]
[Black "Shoykhet, Benjamin"]
[Result "1/2-1/2"]
[ECO "B36"]
[WhiteElo "2193"]
[BlackElo "1919"]
[Annotator "TA"]
[PlyCount "64"]
[EventDate "2023.05.24"]
[EventType "swiss"]
[EventCountry "USA"]
[SourceTitle "playchess.com"]
[Source "ChessBase"]
[SourceQuality "1"]
[TimeControl "5400+30"]

{[%evp 18,64,50,31,46,31,28,26,24,18,32,10,10,0,0,0,9,0,6,5,14,10,14,0,0,-33,-30,-30,-30,-31,-33,-50,-40,-52,-54,-52,-52,-52,-52,-52,-52,-52,-25,-74,0,-52,0,-63,0]} 1. e4 {[%emt 0:03:00]} c5 {[%emt 0:00:17]} 2. Nf3 {[%emt 0:00:07]} Nc6 {[%emt 0:00:06]} 3. d4 {[%emt 0:00:07]} cxd4 {[%emt 0:00:06]} 4. Nxd4 {[%emt 0:00:03]} g6 {[%emt 0:00:08]} 5. c4 {[%emt 0:00:17]} Nf6 {[%emt 0:00:05]} 6. Nc3 {[%emt 0:00:29]} d6 {[%emt 0:00:06]} 7. Be2 {[%emt 0:01:41]} Nxd4 {[%emt 0:00:08]} 8. Qxd4 {[%emt 0:00:11]} Bg7 {[%emt 0:00:06]} 9. Be3 {[%emt 0:02:45]} O-O {[%emt 0:00:54]} 10. Qd2 {[%emt 0:00:28]} a5 {[%emt 0:00:20][%cal Ba7a5,Ba5a4][%mdl 32] is the new trend. B36: Sicilian: Maroczy Bind: Gurgenidze System.} 11. f3 {[%emt 0:02:21]} a4 {[%emt 0:00:16]} 12. O-O {[%emt 0:10:09]} Qa5 {[%emt 0:00:57] White has an edge.} 13. Rfc1 {[%emt 0:08:38][%cal Bf1c1,Bc1c2,Bc2d2][%mdl 32]} Be6 {[%emt 0:02:04]} 14. Rab1 {[%emt 0:02:10]} Rfc8 {[%emt 0:02:18]} 15. b3 {[%emt 0:02:04]} axb3 {[%emt 0:00:31]} 16. axb3 {[%emt 0:00:12]} Qb4 {[%emt 0:00:52]} 17. Rc2 {[%emt 0:07:00]} Ra3 {[%emt 0:01:59]} 18. Nb5 {[%emt 0:02:26]} Qxd2 {[%emt 0:00:28]} 19. Rxd2 {[%emt 0:01:11]} Raa8 {[%emt 0:11:19] [#]} 20. Rbd1 $146 {[%emt 0:05:45]} ({Predecessor:} 20. Kf2 Nd7 21. Nd4 Nc5 22. b4 Na4 23. Nxe6 fxe6 24. Rb3 Nc3 25. Bd3 Ra1 26. Kg3 {1-0 Svane,R (2649)-Wieczorek,O (2505) Titled Tuesday intern op 07th Jun Late blitz 2022 (6)}) 20... Nd7 {[%emt 0:03:11]} 21. Nd4 {[%emt 0:07:42]} Ra3 {[%emt 0:02:16]} 22. Rb1 {[%emt 0:03:53]} Nc5 {[%emt 0:02:12] aiming for ...Bxd4.} 23. Nxe6 {[%emt 0:01:38]} fxe6 {[%emt 0:00:36]} 24. Bd1 {[%emt 0:01:18]} b6 {[%emt 0:11:04]} 25. Re2 {[%emt 0:09:27]} Rca8 {[%emt 0:02:02]} 26. Bc2 {[%emt 0:04:18]} Ra1 {[%emt 0:04:20]} 27. Rxa1 {[%emt 0:02:26]} Rxa1+ {[%emt 0:00:06]} 28. Kf2 {[%emt 0:00:04]} Bc3 {[%emt 0:00:30]} 29. f4 {[%emt 0:03:28][%cal Oe4e5]} Ra3 {[%emt 0:01:48]} 30. Bc1 {[%emt 0:01:53]} (30. Bxc5 $11 {should be considered.} bxc5 31. e5) 30... Ra1 {[%emt 0:00:11]} 31. Be3 {[%emt 0:00:03]} Ra3 {[%emt 0:00:14]} 32. Bc1 {[%emt 0:00:14]} Ra1 {[%emt 0:02:37] Weighted Error Value: White=0.09 (flawless) /Black=0.09 (flawless)} (32... Bd4+ $15 33. Kf3 Ra1) 1/2-1/2

[Event "10th Cherry Blossom Classic 2023"]
[Site "Dulles"]
[Date "2023.05.28"]
[Round "6.22"]
[White "Prem, Pranav"]
[Black "Vinod, Aarush"]
[Result "1-0"]
[ECO "E97"]
[WhiteElo "2061"]
[BlackElo "1914"]
[Annotator "NA RC"]
[PlyCount "65"]
[EventDate "2023.05.24"]
[EventType "swiss"]
[EventCountry "USA"]
[SourceTitle "playchess.com"]
[Source "ChessBase"]
[SourceQuality "1"]
[TimeControl "5400+30"]

1. d4 {[%emt 0:03:49]} Nf6 {[%emt 0:00:08]} 2. c4 {[%emt 0:00:06]} g6 {[%emt 0:00:56]} 3. Nc3 {[%emt 0:00:05]} Bg7 {[%emt 0:00:07]} 4. e4 {[%emt 0:00:03]} d6 {[%emt 0:00:03]} 5. Nf3 {[%emt 0:00:03]} O-O {[%emt 0:00:06]} 6. Be2 {[%emt 0:00:02]} e5 {[%emt 0:00:09]} 7. O-O {[%emt 0:00:04]} Nc6 {[%emt 0:00:07]} 8. d5 {[%emt 0:00:04]} Ne7 {[%emt 0:00:05]} 9. Nd2 {[%emt 0:00:02]} Ne8 {[%emt 0:00:28]} 10. b4 {[%emt 0:00:06]} f5 {[%emt 0:00:16]} 11. c5 {[%emt 0:00:04]} Nf6 {[%emt 0:01:57]} 12. f3 {[%emt 0:03:03]} f4 {[%emt 0:00:57]} 13. Nc4 {[%emt 0:02:02]} g5 {[%emt 0:02:11]} 14. a4 {[%emt 0:06:39]} Ng6 {[%emt 0:00:59]} 15. a5 {[%emt 0:12:06]} h5 {[%emt 0:04:01]} 16. Bb2 {[%emt 0:07:27]} Rf7 {[%emt 0:12:28]} 17. b5 {[%emt 0:01:23]} g4 {[%emt 0:32:30]} 18. b6 {[%emt 0:03:16]} axb6 {[%emt 0:04:00]} 19. axb6 {[%emt 0:06:27]} Rxa1 20. Qxa1 {[%emt 0:01:09]} Ne8 {[%emt 0:03:45]} 21. Qa8 {[%emt 0:08:01]} g3 {[%emt 0:01:19]} 22. h3 {[%emt 0:07:31]} Nh4 {[%emt 0:07:40]} 23. Ra1 {[%emt 0:09:10]} cxb6 {[%emt 0:16:14]} 24. cxd6 {[%emt 0:07:18]} Bf8 {[%emt 0:01:45]} 25. Nb5 {[%emt 0:07:20]} Rg7 {[%emt 0:09:34]} 26. Na7 {[%emt 0:07:46]} Nxd6 {[%emt 0:01:01]} 27. Nxd6 {[%emt 0:00:19]} Qxd6 {[%emt 0:00:12]} 28. Ba3 {[%emt 0:00:08]} Qxa3 {[%emt 0:01:32]} 29. Rxa3 {[%emt 0:00:07]} Bc5+ {[%emt 0:00:00]} 30. Kf1 {[%emt 0:00:23]} Bxa3 {[%emt 0:00:00]} 31. Qxc8+ {[%emt 0:00:18]} Kh7 {[%emt 0:00:00]} 32. Nb5 {[%emt 0:00:11]} Bc5 {[%emt 0:00:19]} 33. d6 {[%emt 0:00:11]} 1-0

[Event "10th Cherry Blossom Classic 2023"]
[Site "Dulles"]
[Date "2023.05.28"]
[Round "6.23"]
[White "Samuelson, Andrew"]
[Black "Su, Kevin"]
[Result "0-1"]
[ECO "C24"]
[WhiteElo "2019"]
[BlackElo "2038"]
[Annotator "NA RC"]
[PlyCount "58"]
[EventDate "2023.05.24"]
[EventType "swiss"]
[EventCountry "USA"]
[SourceTitle "playchess.com"]
[Source "ChessBase"]
[SourceQuality "1"]
[TimeControl "5400+30"]

1. e4 {[%emt 0:00:03]} e5 {[%emt 0:04:03]} 2. Bc4 {[%emt 0:00:43]} Nf6 {[%emt 0:00:04]} 3. d3 {[%emt 0:00:06]} c6 {[%emt 0:00:05]} 4. Nf3 {[%emt 0:00:07]} d5 {[%emt 0:00:03]} 5. Bb3 {[%emt 0:00:07]} Bd6 {[%emt 0:00:04]} 6. Nc3 {[%emt 0:00:10]} a5 {[%emt 0:00:03]} 7. a4 {[%emt 0:00:15]} d4 {[%emt 0:00:07]} 8. Ne2 {[%emt 0:00:10]} O-O {[%emt 0:00:22]} 9. O-O {[%emt 0:00:10]} c5 {[%emt 0:03:01]} 10. Ng3 {[%emt 0:00:43]} Be6 {[%emt 0:02:35]} 11. c3 {[%emt 0:00:34]} Nc6 {[%emt 0:00:52]} 12. Bc2 {[%emt 0:00:28]} h6 {[%emt 0:01:54]} 13. Nh4 {[%emt 0:00:39]} Ne7 {[%emt 0:05:35]} 14. Nhf5 {[%emt 0:08:43]} Nxf5 {[%emt 0:00:44]} 15. exf5 {[%emt 0:03:23]} Bd5 {[%emt 0:01:59]} 16. f4 {[%emt 0:05:22]} c4 {[%emt 0:02:03]} 17. cxd4 {[%emt 0:05:27]} exd4 {[%emt 0:01:27]} 18. dxc4 {[%emt 0:01:34]} Bxc4 {[%emt 0:00:07]} 19. Bd3 {[%emt 0:00:10]} Rc8 {[%emt 0:01:14]} 20. Kh1 {[%emt 0:01:51]} Re8 {[%emt 0:02:20]} 21. Bxc4 {[%emt 0:01:21]} Rxc4 {[%emt 0:00:07]} 22. b3 {[%emt 0:00:23]} Rc5 {[%emt 0:07:48]} 23. Bb2 {[%emt 0:05:29]} Rd5 {[%emt 0:00:53]} 24. Rc1 {[%emt 0:04:02]} Bb4 {[%emt 0:01:12]} 25. Rc4 {[%emt 0:04:49]} d3 {[%emt 0:02:26]} 26. Bc3 {[%emt 0:01:30]} d2 {[%emt 0:01:00]} 27. Ne2 {[%emt 0:01:37]} Rxe2 {[%emt 0:00:22]} 28. Qxe2 {[%emt 0:00:17]} d1=Q {[%emt 0:00:08]} 29. Rxd1 {[%emt 0:01:15]} Rxd1+ {[%emt 0:00:09]} 0-1

[Event "10th Cherry Blossom Classic 2023"]
[Site "Dulles"]
[Date "2023.05.29"]
[Round "7.1"]
[White "Nyzhnyk, Illya"]
[Black "Kantor, Gergely"]
[Result "1/2-1/2"]
[ECO "E36"]
[WhiteElo "2644"]
[BlackElo "2535"]
[Annotator "TA"]
[PlyCount "25"]
[EventDate "2023.05.24"]
[EventType "swiss"]
[EventCountry "USA"]
[SourceTitle "playchess.com"]
[Source "ChessBase"]
[SourceQuality "1"]
[TimeControl "5400+30"]

{[%evp 12,25,10,0,12,18,26,0,0,0,0,0,0,-9,-6,0]} 1. d4 {[%emt 0:00:02]} Nf6 {[%emt 0:01:56]} 2. c4 {[%emt 0:00:17]} e6 {[%emt 0:00:05]} 3. Nc3 {[%emt 0:00:05]} Bb4 {[%emt 0:00:34]} 4. Qc2 {[%emt 0:00:06]} O-O {[%emt 0:01:00]} 5. a3 {[%emt 0:00:06]} Bxc3+ {[%emt 0:01:00]} 6. Qxc3 {[%emt 0:00:07]} d5 {[%emt 0:00:56]} 7. Bg5 {[%emt 0:00:08]} dxc4 {[%emt 0:04:08] E36: Nimzo-Indian: Classical: 4...d5 5 a3.} 8. Qxc4 {[%emt 0:00:06]} b6 {[%emt 0:00:05]} 9. Rd1 {[%emt 0:00:05]} Ba6 {[%emt 0:00:29] The position is equal.} 10. Qa4 {[%emt 0:00:08]} h6 {[%emt 0:00:49] 10...h6 scores better than 10...Qd7.} 11. Bh4 {[%emt 0:05:15]} Qe7 {[%emt 0:03:21] [#]} 12. f3 $146 {[%emt 0:07:32]} ({Predecessor:} 12. Nf3 Rd8 13. Qc2 c5 14. e4 Bxf1 15. Rxf1 g5 16. Nxg5 hxg5 17. Bxg5 Nc6 18. Qc1 Rxd4 19. Rxd4 Nxd4 {½-½ Firouzja,A (2793)-Nakamura,H (2760) Candidates Tournament 2022 (3)}) 12... c5 {[%emt 0:12:42]} 13. dxc5 {[%emt 0:34:00] A rather calm draw.   Weighted Error Value: White=0.08 (flawless) /Black=0.03 (flawless)} 1/2-1/2

[Event "10th Cherry Blossom Classic 2023"]
[Site "Dulles"]
[Date "2023.05.29"]
[Round "7.2"]
[White "Durarbayli, Vasif"]
[Black "Burke, John M"]
[Result "1-0"]
[ECO "C78"]
[WhiteElo "2627"]
[BlackElo "2583"]
[Annotator "TA"]
[PlyCount "131"]
[EventDate "2023.05.24"]
[EventType "swiss"]
[EventCountry "USA"]
[SourceTitle "playchess.com"]
[Source "ChessBase"]
[SourceQuality "1"]
[TimeControl "5400+30"]

{[%evp 16,131,30,12,19,-3,13,11,10,9,6,13,18,7,9,9,36,5,7,0,0,0,0,0,0,0,0,0,0,0,0,0,11,12,9,0,0,0,14,18,29,27,48,50,37,60,52,63,57,63,60,61,52,47,64,64,50,53,45,48,63,39,52,8,57,21,14,14,14,8,16,16,22,20,35,12,67,18,78,8,8,8,18,0,6,6,14,0,13,0,79,8,79,79,79,79,29939,29942,29949,29957,29954,29947,29954,29950,29962,29963,29972,29972,29974,73,72,0,29973,29972,29972,29971,29974,29974]} 1. e4 {[%emt 0:00:00]} e5 {[%emt 0:00:56]} 2. Nf3 {[%emt 0:00:40]} Nc6 {[%emt 0:00:05]} 3. Bb5 {[%emt 0:01:55][%cal Bf1b5,Bb5a4,Ba4b3][%mdl 32]} a6 {[%emt 0:00:06]} 4. Ba4 {[%emt 0:00:08]} Nf6 {[%emt 0:00:05]} 5. O-O {[%emt 0:00:14]} Bc5 {[%emt 0:01:10]} 6. c3 {[%emt 0:01:21]} b5 {[%emt 0:00:31]} 7. Bb3 {[%emt 0:00:07]} d6 {[%emt 0:00:04]} 8. d4 {[%emt 0:01:31]} Bb6 {[%emt 0:00:04]} 9. Be3 {[%emt 0:00:07]} (9. a4 $5 {[%cal Ra4b5]} Bb7 10. Bg5 $11) 9... O-O {[%emt 0:01:39] C78: Ruy Lopez: Archangelsk and Möller Defences.} 10. h3 {[%emt 0:00:50]} Bb7 {[%emt 0:01:49]} (10... Nxe4 $2 11. Bd5 Bb7 12. Bxe4 $18) (10... exd4 {with more complications.} 11. cxd4 Nxe4 12. Bd5 Qe8) 11. Nbd2 {[%emt 0:02:47]} exd4 {[%emt 0:02:36] The position is equal.} 12. cxd4 {[%emt 0:01:32]} Na5 {[%emt 0:00:10]} 13. Bc2 {[%emt 0:00:16]} Re8 {[%emt 0:00:08][%cal Rb7e4]} 14. Qb1 {[%emt 0:05:01]} Nc4 {[%emt 0:01:24]} 15. Nxc4 {[%emt 0:01:19]} bxc4 {[%emt 0:00:04]} 16. Nd2 {[%emt 0:00:04] [#]} (16. e5 {is more complex.} dxe5 17. dxe5 Bxf3 18. exf6 Bc6 19. Bxh7+ Kh8 20. fxg7+ Kxg7 21. Bxb6 cxb6 22. Qc2) 16... h6 $146 {[%emt 0:01:11]} ({Predecessor:} 16... Rb8 17. Nxc4 Bxe4 18. Bxe4 Nxe4 19. Qd3 Qd7 20. Rfc1 Nf6 21. Bd2 Ba7 22. Re1 h6 {½-½ Ponomariov,R (2733)-Giri,A (2727) Zug FIDE GP 2013 (4)}) 17. Nxc4 {[%emt 0:03:39]} Bxe4 {[%emt 0:00:49]} 18. Bxe4 {[%emt 0:01:12]} Rxe4 {[%emt 0:01:28]} 19. Qd3 {[%emt 0:03:35]} Qe8 {[%emt 0:06:13]} 20. Nxb6 {[%emt 0:06:45]} cxb6 {[%emt 0:00:05]} 21. d5 {[%emt 0:00:06]} Qb5 {[%emt 0:15:49]} 22. Rfd1 {[%emt 0:00:47]} Qxd3 {[%emt 0:10:29]} (22... Qxb2 {looks sharper.} 23. Rab1 Qxa2 24. Rxb6 Qc4) 23. Rxd3 {[%emt 0:00:12]} Rb4 {[%emt 0:00:12]} 24. b3 {[%emt 0:03:49]} Rc8 {[%emt 0:02:45]} 25. a3 {[%emt 0:04:18]} Rb5 {[%emt 0:00:05]} 26. Rad1 {[%emt 0:03:50]} Rc2 {[%emt 0:08:44]} 27. Bf4 $36 {[%emt 0:10:17][%mdl 2048] White has the initiative.} Ne4 {[%emt 0:02:52]} 28. a4 {[%emt 0:12:09]} Rb4 {[%emt 0:14:49]} 29. f3 {[%emt 0:00:39]} Nc3 {[%emt 0:01:32]} 30. Bxd6 {[%emt 0:02:19]} Rxb3 {[%emt 0:00:03]} 31. Be5 {[%emt 0:07:03]} Nxd1 {[%emt 0:05:44]} 32. Rxb3 $14 {[%emt 0:02:22][%mdl 4096] Endgame Rd3 would be deadly. KRB-KRN} f6 $1 {[%emt 0:01:00]} 33. Bd4 {[%emt 0:02:54] Rd3 is the strong threat.} Rd2 {[%emt 0:01:41] Dodges Rd3} 34. Bxb6 {[%emt 0:00:13]} Rxd5 {[%emt 0:01:36]} 35. Kf1 {[%emt 0:00:50]} Rd2 {[%emt 0:01:20]} 36. a5 $1 {[%emt 0:06:14]} Nb2 $1 {[%emt 0:01:39]} 37. Rc3 {[%emt 0:00:05] Wards off Nc4} Kf7 {[%emt 0:01:47]} 38. Rc7+ {[%emt 0:02:41]} Kg6 {[%emt 0:00:03]} 39. g4 {[%emt 0:00:49]} h5 {[%emt 0:02:55]} (39... Nd3 $1 $11) 40. gxh5+ {[%emt 0:02:12]} Kxh5 {[%emt 0:00:04]} 41. Rxg7 {[%emt 0:00:04]} Nc4 {[%emt 0:00:25]} 42. Bc7 {[%emt 0:01:56]} Ra2 {[%emt 0:01:08]} 43. Bd8 {[%emt 0:00:50]} Nxa5 {[%emt 0:03:42]} 44. Bxf6 {[%emt 0:00:04]} Nc4 {[%emt 0:00:07]} 45. Kg1 {[%emt 0:02:46]} Re2 {[%emt 0:04:14]} ({Black should play} 45... Nd2 $11) 46. f4 {[%emt 0:00:56]} (46. Rg5+ $14 Kh6 47. f4) 46... Nd6 {[%emt 0:02:14] [#]} (46... Nd2 $11 {remains equal.}) 47. f5 {[%emt 0:03:09] White is more active.} Kh6 $1 $11 {[%emt 0:00:05]} (47... Nxf5 $2 48. Rg5+ Kh6 49. Rxf5 $18) 48. Rg6+ {[%emt 0:00:04]} Kh7 {[%emt 0:00:03]} 49. Rg7+ {[%emt 0:00:04]} Kh6 {[%emt 0:00:04]} 50. Rg5 {[%emt 0:02:36]} a5 {[%emt 0:02:37]} 51. h4 {[%emt 0:00:09]} a4 {[%emt 0:00:47]} 52. Bd4 {[%emt 0:00:50] Black must now prevent Rg6+.} Nb5 {[%emt 0:03:46]} (52... Nf7 $1 $11 53. Rg7 Ne5 54. Bxe5 Rxe5) 53. Bg7+ $16 {[%emt 0:01:42]} Kh7 {[%emt 0:00:01] [#]} 54. f6 $1 {[%emt 0:00:04][%cal Of6f7] White wants to mate with f7!} Nd6 {[%emt 0:00:04]} 55. Bf8 {[%emt 0:00:06]} Re6 {[%emt 0:01:54][%mdl 8192]} (55... Ne4 $16 56. Rg7+ Kh8) 56. Rg7+ {[%emt 0:02:41]} Kh8 {[%emt 0:00:02]} 57. f7 {[%emt 0:00:06]} Nxf7 {[%emt 0:01:30]} 58. Rxf7 {[%emt 0:00:02] KRB-KR} Re4 {[%emt 0:00:23]} 59. h5 {[%emt 0:00:22]} Kg8 {[%emt 0:00:17]} 60. Rf5 {[%emt 0:00:36]} Rh4 {[%emt 0:00:37]} 61. Kg2 {[%emt 0:00:43]} Kh7 {[%emt 0:00:30]} 62. Rf7+ $2 {[%emt 0:00:28]} (62. Ra5 {mates} Kg8 63. Be7 Re4 64. Bg5 Rb4 65. Kf3 Rb7 66. Rxa4 Kg7 67. Kg4) 62... Kg8 {[%emt 0:00:04]} 63. Rf5 {[%emt 0:00:03]} Kh7 $1 {[%emt 0:00:01]} 64. Kg3 {[%emt 0:00:29] White mates.} Rh1 {[%emt 0:00:27]} 65. Ra5 {[%emt 0:01:31]} Rf1 {[%emt 0:00:22]} 66. Ra7+ {[%emt 0:00:32] Weighted Error Value: White=0.22 (precise) /Black=0.22 (precise)} 1-0

[Event "10th Cherry Blossom Classic 2023"]
[Site "Dulles"]
[Date "2023.05.29"]
[Round "7.3"]
[White "Antipov, Mikhail Al."]
[Black "Matviishen, Viktor"]
[Result "1-0"]
[ECO "D41"]
[WhiteElo "2588"]
[BlackElo "2538"]
[Annotator "TA"]
[PlyCount "69"]
[EventDate "2023.05.24"]
[EventType "swiss"]
[EventCountry "USA"]
[SourceTitle "playchess.com"]
[Source "ChessBase"]
[SourceQuality "1"]
[TimeControl "5400+30"]

{[%evp 26,69,22,3,0,0,0,6,9,8,35,0,4,0,26,26,32,20,19,20,139,125,145,95,124,115,112,108,1869,151,1881,1835,1547,383,389,312,597,241,731,266,29988,29989,29990,900,859,814]} 1. d4 {[%emt 0:05:33]} Nf6 {[%emt 0:00:47]} 2. c4 {[%emt 0:00:06]} e6 {[%emt 0:00:04]} 3. Nf3 {[%emt 0:00:06]} d5 {[%emt 0:04:15]} 4. Nc3 {[%emt 0:00:50]} c5 {[%emt 0:02:24]} 5. cxd5 {[%emt 0:02:28]} Nxd5 {[%emt 0:00:11]} 6. e4 {[%emt 0:00:33]} Nxc3 {[%emt 0:00:05]} 7. bxc3 {[%emt 0:00:04]} cxd4 {[%emt 0:00:02]} 8. cxd4 {[%emt 0:00:06]} Bb4+ {[%emt 0:00:02]} 9. Bd2 {[%emt 0:00:07]} Bxd2+ {[%emt 0:00:03]} 10. Qxd2 {[%emt 0:00:06]} O-O {[%emt 0:00:04]} 11. Bc4 {[%emt 0:01:26]} Nd7 {[%emt 0:00:12]} 12. O-O {[%emt 0:00:26]} b6 {[%emt 0:00:04]} 13. Rad1 {[%emt 0:00:23]} Bb7 {[%emt 0:00:06]} 14. Rfe1 {[%emt 0:00:05]} Rc8 {[%emt 0:00:05] D41: Queen's Gambit Declined: Semi-Tarrasch with 5 cxd5.} 15. Bb3 {[%emt 0:00:09]} Qf6 {[%emt 0:10:50]} 16. Re3 $5 {[%emt 0:07:59][%mdl 4] Leaves trodden paths.} Rfd8 {[%emt 0:00:45] The position is equal.} 17. Qe2 {[%emt 0:01:57]} h6 {[%emt 0:05:38]} 18. h3 {[%emt 0:07:39]} Qe7 {[%emt 0:07:28] [#]} 19. a3 $146 {[%emt 0:10:22]} ({Predecessor:} 19. d5 Nc5 20. Nd4 exd5 21. Nf5 Qf6 22. Rg3 Nxe4 23. Rxg7+ Kh8 24. Qh5 Nd6 25. Nxd6 Kxg7 26. Nxb7 {1-0 Horvath,D (2501)-Naumann,A (2504) AUT-chT 2223 2022 (1.2)}) 19... Rc7 {[%emt 0:05:29]} (19... Qxa3 20. Bxe6 Qb4 21. Bg4 $16) 20. d5 {[%emt 0:06:51] aiming for d6.} Nc5 {[%emt 0:00:13]} 21. Ba2 {[%emt 0:00:12]} Ba6 {[%emt 0:17:59]} 22. Qd2 {[%emt 0:01:55]} exd5 {[%emt 0:10:03]} (22... Qe8 $11) 23. exd5 $16 {[%emt 0:00:16]} Qf6 {[%emt 0:05:11]} 24. Ne5 {[%emt 0:09:25]} (24. Rde1 $142 $1) 24... Re7 {[%emt 0:01:07]} 25. Nc6 {[%emt 0:18:46]} Rxe3 {[%emt 0:00:05]} 26. Qxe3 {[%emt 0:00:03]} Rd6 {[%emt 0:02:14][%mdl 8192]} (26... Ra8 $16) 27. Qe8+ $18 {[%emt 0:04:06]} (27. Nxa7 Bb7 $16) 27... Kh7 {[%emt 0:03:30] Black cannot hold the game after this.} 28. Ne7 $1 {[%emt 0:00:07][%csl Ge7][%cal Re8g8]} ({Not} 28. Nxa7 Bd3 29. Qe1 (29. Nc6 Ne4 $11) 29... Qb2 $14) 28... h5 {[%emt 0:00:08]} 29. Bb1+ $2 {[%emt 0:06:34]} (29. Qg8+ Kh6 30. Qh8+ Kg5 31. f4+ Kh4 32. g3+ (32. Re1 Qxf4 33. Qxg7 Rf6 $18) 32... Kxh3 33. Qxh5+ Kxg3 34. Nf5+ Kxf4 35. Nxd6 Qg6+ 36. Qxg6 fxg6 37. Re1) 29... g6 {[%emt 0:01:51]} 30. Re1 {[%emt 0:02:03]} Rd7 $2 {[%emt 0:09:46] [#]} (30... Qg7 31. g4 Rf6) 31. d6 {[%emt 0:06:36]} Bb5 $2 {[%emt 0:00:51] [#]} (31... Bd3 32. Bxd3 Nxd3) 32. a4 $2 {[%emt 0:06:09]} Bxa4 $2 {[%emt 0:00:44] [#]} (32... Bd3 $18 33. Qg8+ Kh6) 33. Re5 $3 {[%emt 0:00:26][%mdl 576] Deflection, Back Rank} Bd1 {[%emt 0:09:46] [#]} (33... Bc2 34. Bxc2) 34. Rf5 {[%emt 0:00:47]} Rxe7 {[%emt 0:04:13]} 35. Qxe7 {[%emt 0:00:09] A fantastic game!   Weighted Error Value: White=0.85/Black=0.80} (35. Rxf6 $2 {loses.} Rxe8 36. Rxf7+ Kh6 37. Rxa7 Ba4 $19) 1-0

[Event "10th Cherry Blossom Classic 2023"]
[Site "Dulles"]
[Date "2023.05.29"]
[Round "7.4"]
[White "Bora, Safal"]
[Black "Khanin, Semen"]
[Result "1/2-1/2"]
[ECO "A50"]
[WhiteElo "2462"]
[BlackElo "2566"]
[Annotator "TA"]
[PlyCount "79"]
[EventDate "2023.05.24"]
[EventType "swiss"]
[EventCountry "USA"]
[SourceTitle "playchess.com"]
[Source "ChessBase"]
[SourceQuality "1"]
[TimeControl "5400+30"]

{[%evp 9,79,-2,3,-19,-21,-31,0,0,0,2,20,13,14,0,0,0,0,0,0,0,0,0,12,0,10,4,46,28,95,74,74,50,39,13,75,79,49,39,60,27,15,-46,-46,-46,-46,-50,-49,-46,-46,-46,-46,-46,-40,-46,-46,-46,-46,-46,-46,-46,-46,-46,-46,-46,-46,-46,-45,-46,-28,-28,-28,-27]} 1. d4 {[%emt 0:04:09]} Nf6 {[%emt 0:00:17]} 2. c4 {[%emt 0:00:03]} e6 {[%emt 0:00:06]} 3. Bf4 {[%emt 0:00:11]} d5 {[%emt 0:01:27]} 4. cxd5 {[%emt 0:00:22]} Nxd5 {[%emt 0:02:16]} 5. Bg3 {[%emt 0:00:09]} c5 {[%emt 0:09:10]} 6. e4 {[%emt 0:00:25] A50: Queen's Fianchetto Defence (1 d4 Nf6 2 c4 b6).} Nf6 {[%emt 0:01:27][%csl LRd4,LRe4]} 7. Nd2 {[%emt 0:00:10]} Nc6 {[%emt 0:05:03]} 8. dxc5 {[%emt 0:01:23] The position is equal.} Bxc5 {[%emt 0:01:36]} 9. e5 {[%emt 0:00:41]} Nd5 {[%emt 0:01:01]} 10. Ngf3 {[%emt 0:00:10]} O-O {[%emt 0:04:06] [#]} 11. Bc4 $146 {[%emt 0:08:04]} ({Predecessor:} 11. a3 b6 12. Ne4 a5 13. Rc1 Nce7 14. Bd3 Ba6 15. Bxa6 Rxa6 16. O-O Qa8 17. Re1 {0-1 Niemann,H (2699)-Robson,R (2690) USA-ch Saint Louis 2022 (6)}) 11... Nb6 {[%emt 0:04:34]} 12. Be2 {[%emt 0:06:09]} Nd4 {[%emt 0:01:25]} 13. Nxd4 {[%emt 0:19:00]} Qxd4 {[%emt 0:00:33]} 14. O-O {[%emt 0:02:08]} Qxb2 {[%emt 0:16:57]} 15. Ne4 {[%emt 0:01:12]} Be7 {[%emt 0:00:31]} 16. Bd3 {[%emt 0:04:47] Hoping for Rb1.} Rd8 {[%emt 0:04:03]} 17. Nd6 {[%emt 0:06:02] Rb1 would be deadly.} Bxd6 {[%emt 0:04:23]} 18. exd6 {[%emt 0:00:29]} Nd7 {[%emt 0:09:10]} (18... Qf6 $11 {keeps the balance.}) 19. Rc1 $16 {[%emt 0:07:21][%mdl 1024] White has strong compensation.} ({Of course not} 19. Qh5 Nf6 20. Qf3 Nd5 $14) 19... Nf8 {[%emt 0:02:46]} 20. Rc7 {[%emt 0:09:50]} Bd7 {[%emt 0:01:48]} 21. Qf3 {[%emt 0:00:26]} (21. Be4 $5 {[%cal Rg3h4]}) 21... Rab8 {[%emt 0:02:07] [#]} (21... Qxa2 $11 {remains equal.} 22. Rd1 (22. Qxb7 Qd5 $16) (22. Rxb7 Rab8 $16) 22... f6) 22. a3 $1 {[%emt 0:03:10] White has more active pieces. The black rooks are badly placed.} Qf6 {[%emt 0:04:07]} 23. Qe3 {[%emt 0:02:51]} (23. Rxb7 $2 {perishes.} Qxf3 24. Rxb8 Qf6 $19) 23... Ng6 {[%emt 0:00:35] Against Be5} 24. Qxa7 {[%emt 0:00:36]} Bc6 {[%emt 0:01:20] [#]} 25. d7 {[%emt 0:04:43]} Ra8 $15 {[%emt 0:01:07]} 26. Qxa8 {[%emt 0:06:03][%mdl 64] Remove Defender, Decoy} Rxa8 {[%emt 0:00:04]} 27. Rc8+ {[%emt 0:00:03] [#]} Qd8 $1 {[%emt 0:00:14]} 28. Rxd8+ {[%emt 0:00:19]} Rxd8 {[%emt 0:00:22]} 29. Bxg6 {[%emt 0:00:08]} hxg6 {[%emt 0:00:10][%mdl 4096] Endgame KRB-KRB} 30. Rd1 {[%emt 0:00:05]} Bd5 {[%emt 0:01:46]} 31. Rc1 {[%emt 0:00:08] Threatens to win with Rc8.} Rxd7 {[%emt 0:00:41]} 32. Rc8+ {[%emt 0:00:06]} Kh7 {[%emt 0:00:03]} 33. Rc7 {[%emt 0:00:04]} Rxc7 {[%emt 0:00:13]} 34. Bxc7 {[%emt 0:00:04] KB-KB} g5 {[%emt 0:00:03]} 35. f3 {[%emt 0:00:33]} Kg6 {[%emt 0:00:32]} 36. Kf2 {[%emt 0:00:09]} f6 {[%emt 0:00:24]} 37. Bd6 {[%emt 0:00:12]} e5 {[%emt 0:00:15]} 38. Bc5 {[%emt 0:00:34]} Kf5 {[%emt 0:00:10]} 39. Bf8 $1 {[%emt 0:00:13]} g6 {[%emt 0:00:05]} 40. Be7 {[%emt 0:00:07] Weighted Error Value: White=0.09 (flawless) /Black=0.10 (very precise)} 1/2-1/2